bitfinex/quotes_SOLUSD_20260211
["timestamp","ask_amount","ask_price","bid_price","bid_amount"]
[1770796783045,0.69552037,81.104,81.086,13.00599213]
[1770796783343,0.69552037,81.104,81.086,0.67340698]
[1770796784756,0.69552037,81.104,81.081,0.67340698]
[1770796785357,0.69552037,81.099,81.075,47.32]
[1770796785927,3.73965047,81.09,81.075,47.32]
[1770796786140,0.69552037,81.089,81.075,47.32]
[1770796786343,0.69552037,81.089,81.06,0.2]
[1770796786534,0.69552037,81.079,81.06,0.2]
[1770796787049,0.69552037,81.079,81.06,12.5364783]
[1770796791552,0.69552037,81.079,81.06,0.2]
[1770796791854,0.67680176,81.069,81.06,0.2]
[1770796796752,0.67680176,81.069,81.05,0.2]
[1770796796950,0.67680176,81.069,81.051,0.69012222]
[1770796797157,3.74469419,81.08,81.053,0.69012222]
[1770796797345,0.67680176,81.084,81.061,0.69012222]
[1770796798359,3.74469419,81.08,81.061,0.69012222]
[1770796798656,0.67680176,81.069,81.054,47.88]
[1770796801358,0.67680176,81.069,81.055,12.33730183]
[1770796803459,0.67680176,81.069,81.054,47.88]
[1770796803657,0.67680176,81.069,81.05,0.2]
[1770796803866,0.67680176,81.059,81.032,12.3408024]
[1770796804157,0.67680176,81.049,81.032,12.3408024]
[1770796804746,0.67680176,81.069,81.033,0.69533047]
[1770796804944,0.67680176,81.079,81.041,0.69533047]
[1770796805366,0.67680176,81.079,81.043,0.69533047]
[1770796805561,5.13032502,81.107,81.042,12.33928086]
[1770796805562,0.67680176,81.101,81.071,0.69533047]
[1770796805753,0.67680176,81.101,81.073,0.69533047]
[1770796806062,0.67680176,81.099,81.073,0.69533047]
[1770796806265,0.67680176,81.079,81.046,0.69533047]
[1770796806468,0.67680176,81.079,81.048,0.69533047]
[1770796806966,0.67680176,81.069,81.048,0.69533047]
[1770796807548,0.67680176,81.069,81.047,47.96]
[1770796807765,0.67680176,81.069,81.045,12.33868542]
[1770796808561,0.67680176,81.069,81.049,0.69533047]
[1770796808761,0.67680176,81.075,81.049,0.69533047]
[1770796809358,0.67680176,81.069,81.048,12.33836738]
[1770796809767,0.67680176,81.069,81.043,12.33912861]
[1770796809967,0.67680176,81.069,81.044,0.69533047]
[1770796810373,0.67680176,81.069,81.043,12.33912861]
[1770796810672,0.67680176,81.059,81.043,12.33912861]
[1770796811859,0.67680176,81.059,81.038,12.33988992]
[1770796812752,0.67680176,81.049,81.032,12.34066648]
[1770796813867,0.67680176,81.078,81.041,0.69533047]
[1770796814075,0.67680176,81.078,81.043,0.69533047]
[1770796815255,0.67680176,81.078,81.045,0.69533047]
[1770796815450,0.67680176,81.069,81.042,48.04]
[1770796815655,0.67680176,81.049,81.027,0.69533047]
[1770796816673,3.74469419,81.07,81.031,0.69533047]
[1770796817474,43.16883949,81.077,81.031,0.69533047]
[1770796817475,3.74469419,81.06,81.032,12.34080363]
[1770796817863,3.74469419,81.06,81.032,13.0361341]
[1770796818175,3.74469419,81.05,81.027,12.34141684]
[1770796818676,3.74469419,81.05,81.028,0.69533047]
[1770796818877,3.74469419,81.05,81.031,12.34090124]
[1770796819176,0.60050473,81.056,81.032,0.69533047]
[1770796819375,0.60050473,81.068,81.032,0.69533047]
[1770796819583,0.60050473,81.059,81.033,12.34065133]
[1770796819769,3.74469419,81.05,81.033,12.34065133]
[1770796820584,0.60239228,81.053,81.033,13.06216521]
[1770796820882,0.60239228,81.053,81.034,0.72151388]
[1770796821570,0.6033288,81.069,81.036,0.72151388]
[1770796822789,16.07676498,81.09,81.051,0.72151388]
[1770796822965,0.60333367,81.089,81.051,0.72151388]
[1770796823686,0.60333367,81.088,81.053,0.72151388]
[1770796824067,3.74469419,81.09,81.061,0.72151388]
[1770796824266,12.32935916,81.108,81.081,0.72151388]
[1770796825086,3.74469419,81.11,81.081,0.72151388]
[1770796825267,16.07378089,81.11,81.081,0.72151388]
[1770796825680,16.07378089,81.11,81.082,0.70650372]
[1770796826282,3.74469419,81.11,81.082,0.70650372]
[1770796826492,0.59974885,81.099,81.069,0.70650372]
[1770796826674,0.59974885,81.099,81.076,12.3340519]
[1770796827386,0.59974885,81.099,81.068,48.1]
[1770796827387,0.59974885,81.099,81.08,12.33348697]
[1770796828291,0.59974885,81.099,81.075,0.70650372]
[1770796828492,0.59974885,81.099,81.076,12.33410627]
[1770796829094,0.59974885,81.099,81.077,0.70650372]
[1770796829272,0.59974885,81.099,81.064,30.83945692]
[1770796829273,0.59714492,81.089,80.907,62.89408553]
[1770796829594,0.59714492,81.09,81.051,0.70650372]
[1770796829771,0.59714492,81.089,81.051,0.70650372]
[1770796829973,0.59630418,81.097,81.061,0.70650372]
[1770796830367,17.24,81.111,81.063,0.70650372]
[1770796830368,0.59630418,81.089,81.063,0.70650372]
[1770796830574,0.59630418,81.095,81.063,0.70650372]
[1770796831882,3.74469419,81.1,81.063,0.70650372]
[1770796832087,4.33934256,81.1,81.063,0.70650372]
[1770796832291,0.59464837,81.099,81.063,0.70650372]
[1770796832796,12.33018575,81.102,81.071,0.70650372]
[1770796833088,0.59383499,81.105,81.071,0.70650372]
[1770796833889,12.32937751,81.108,81.071,0.70650372]
[1770796834587,12.92240601,81.108,81.073,0.70650372]
[1770796834785,0.5930285,81.115,81.082,12.33319355]
[1770796834976,0.5930285,81.115,81.083,0.70650372]
[1770796835591,12.32776488,81.118,81.085,0.70650372]
[1770796835892,12.32776488,81.118,81.09,3.74469419]
[1770796836076,12.32776488,81.118,81.091,0.70650372]
[1770796836273,12.32642293,81.127,81.091,0.70650372]
[1770796836478,12.32642293,81.127,81.093,0.70650372]
[1770796836982,12.32642293,81.127,81.095,0.70650372]
[1770796837692,12.91630799,81.127,81.095,0.70650372]
[1770796837904,0.58988506,81.119,81.093,0.70650372]
[1770796838794,3.74469419,81.1,81.082,0.70650372]
[1770796839187,12.3294978,81.107,81.082,0.70650372]
[1770796840300,3.74469419,81.11,81.084,0.70650372]
[1770796840686,12.32908801,81.109,81.084,0.70650372]
[1770796841196,12.32813649,81.116,81.086,0.70650372]
[1770796841504,12.32813649,81.116,81.091,0.70650372]
[1770796841918,12.32604863,81.129,81.091,0.70650372]
[1770796842597,12.32604863,81.129,81.092,48.16]
[1770796842784,12.32604863,81.129,81.093,0.70650372]
[1770796842987,12.32604863,81.129,81.095,0.70650372]
[1770796843815,0.58542336,81.119,81.08,3.74469419]
[1770796844015,0.58542336,81.119,81.086,12.33245622]
[1770796844224,0.58542336,81.119,81.087,0.70650372]
[1770796845420,12.32772011,81.118,81.087,0.70650372]
[1770796845626,12.32772011,81.118,81.089,0.70650372]
[1770796845922,12.3267141,81.125,81.091,0.70650372]
[1770796847517,12.32604863,81.129,81.093,0.70650372]
[1770796848323,3.74047416,81.12,81.093,0.70650372]
[1770796848618,0.58261643,81.128,81.093,0.70650372]
[1770796848818,3.74047416,81.12,81.093,0.70650372]
[1770796849008,0.58261643,81.128,81.093,0.70650372]
[1770796849421,3.74047416,81.11,81.088,0.70650372]
[1770796849723,0.58192579,81.113,81.088,0.70650372]
[1770796850722,12.32772011,81.118,81.088,0.70650372]
[1770796851617,0.57993651,81.117,81.088,0.70650372]
[1770796851808,12.32802406,81.116,81.088,0.70650372]
[1770796852219,0.57927708,81.115,81.086,12.33257523]
[1770796852407,0.57927708,81.115,81.087,0.6596499]
[1770796853826,0.57798843,81.109,81.087,0.6596499]
[1770796854123,0.57798843,81.109,81.085,0.6596499]
[1770796855025,0.57798843,81.109,81.078,0.6596499]
[1770796855930,0.57673921,81.099,81.067,0.6596499]
[1770796856527,0.57673921,81.099,81.07,0.6596499]
[1770796856724,0.57673921,81.099,81.069,11.50882216]
[1770796857309,13.01338048,81.108,81.07,51.94372921]
[1770796857511,0.68414046,81.099,81.071,48.2]
[1770796857913,0.68414046,81.097,81.071,48.2]
[1770796858328,0.68414046,81.089,81.071,48.2]
[1770796858828,0.68414046,81.089,81.056,0.6596499]
[1770796859022,0.68414046,81.089,81.06,3.74372921]
[1770796859226,0.68414046,81.089,81.061,0.6596499]
[1770796860332,0.68414046,81.087,81.061,0.6596499]
[1770796861238,12.33228097,81.088,81.05,0.6596499]
[1770796861239,0.68414046,81.079,81.05,0.6596499]
[1770796861529,4.42786967,81.07,81.05,0.6596499]
[1770796861727,4.42786967,81.07,81.03,3.74372921]
[1770796861728,0.68414046,81.069,81.037,0.6596499]
[1770796861916,3.74372921,81.06,81.037,0.6596499]
[1770796862117,3.74372921,81.06,81.03,16.0847935]
[1770796862118,4.42786967,81.08,81.041,0.6596499]
[1770796862516,4.42786967,81.08,81.043,0.6596499]
[1770796862517,12.33364989,81.079,81.043,0.6596499]
[1770796862715,12.33364989,81.079,81.051,0.6596499]
[1770796863724,12.33267,81.086,81.051,0.6596499]
[1770796863924,12.33267,81.086,81.038,0.6596499]
[1770796863925,0.68414046,81.069,81.038,0.6596499]
[1770796864130,12.33267,81.086,81.038,0.6596499]
[1770796864131,0.68414046,81.059,81.038,0.6596499]
[1770796864333,0.68414046,81.059,81.032,12.34070668]
[1770796864542,0.68414046,81.058,81.032,12.34070668]
[1770796864936,0.68414046,81.049,81.022,0.6596499]
[1770796866345,0.68414046,81.049,81.024,13.00166579]
[1770796866639,0.68414046,81.049,81.025,0.6596499]
[1770796867322,0.68414046,81.039,81.021,48.28]
[1770796868420,0.68414046,81.039,81.017,0.6596499]
[1770796868822,12.33900113,81.044,81.017,0.6596499]
[1770796869230,0.68414046,81.043,81.017,0.6596499]
[1770796869432,3.74372921,81.07,81.031,0.6596499]
[1770796869646,0.68414046,81.069,81.0,0.2]
[1770796869940,0.68414046,81.019,81.001,30.82]
[1770796870323,0.68414046,81.029,81.001,30.82]
[1770796870527,0.68414046,81.038,81.002,12.34537418]
[1770796870739,12.34051614,81.034,81.002,12.34537418]
[1770796871235,0.68414046,81.029,81.002,12.34537418]
[1770796871617,0.68414046,81.029,81.003,0.6596499]
[1770796871818,0.68414046,81.029,81.005,0.6596499]
[1770796872221,0.68414046,81.029,81.007,0.6596499]
[1770796872419,3.74372921,81.03,81.007,0.6596499]
[1770796872618,3.74372921,81.04,81.011,0.6596499]
[1770796874237,3.74372921,81.04,81.013,0.6596499]
[1770796874830,3.74372921,81.04,81.014,12.34354556]
[1770796875156,0.68414046,81.066,81.031,0.6596499]
[1770796875444,3.74372921,81.06,81.033,0.6596499]
[1770796875830,0.68414046,81.066,81.033,0.6596499]
[1770796876026,0.68414046,81.039,81.034,47.72792868]
[1770796876348,0.68414046,81.053,81.034,47.72792868]
[1770796876849,3.74372921,81.05,81.034,47.72792868]
[1770796877147,0.68414046,81.048,81.02,0.6596499]
[1770796877343,0.68414046,81.048,81.035,48.44]
[1770796877542,3.74372921,81.05,81.036,48.46]
[1770796878949,13.0218901,81.053,81.036,48.46]
[1770796879151,0.68414046,81.052,81.036,48.46]
[1770796879533,3.74372921,81.05,81.036,48.46]
[1770796880253,4.4523615,81.05,81.036,48.46]
[1770796880437,12.33821515,81.049,81.036,48.46]
[1770796882044,0.70863229,81.048,81.036,48.46]
[1770796882351,12.33562776,81.066,81.037,0.69136304]
[1770796882654,3.74372921,81.06,81.039,0.69136304]
[1770796883056,4.4523615,81.06,81.039,0.69136304]
[1770796883453,0.70863229,81.059,81.039,0.69136304]
[1770796884862,12.33503116,81.07,81.041,0.69709201]
[1770796885157,12.97808364,81.087,81.051,0.69709201]
[1770796885348,12.97808364,81.087,81.053,0.69709201]
[1770796886164,0.64556475,81.086,81.053,0.69709201]
[1770796886858,12.33273725,81.085,81.054,12.33745404]
[1770796887156,12.33273725,81.085,81.055,0.69709201]
[1770796888158,0.64556475,81.084,81.055,0.69709201]
[1770796888966,3.74372921,81.08,81.057,0.69709201]
[1770796889366,0.64556475,81.084,81.061,0.69709201]
[1770796889862,12.9786062,81.083,81.061,0.69709201]
[1770796892849,12.33076031,81.098,81.071,0.69709201]
[1770796893058,12.33076031,81.098,81.081,0.69709201]
[1770796893250,3.74372921,81.12,81.062,12.33623646]
[1770796893251,0.64556475,81.111,81.09,3.74372921]
[1770796893560,12.32923854,81.109,81.091,0.69709201]
[1770796894141,12.32923854,81.109,81.093,0.69709201]
[1770796894346,12.32923854,81.109,81.094,48.54]
[1770796895765,30.81855696,81.12,81.094,48.54]
[1770796895955,0.64556475,81.111,81.094,48.54]
[1770796896664,0.64556475,81.109,81.074,0.69709201]
[1770796896865,0.64556475,81.109,81.075,48.52]
[1770796897167,0.64556475,81.109,81.081,0.69709201]
[1770796897466,0.64556475,81.115,81.091,0.69709201]
[1770796898664,0.64556475,81.113,81.091,0.69709201]
[1770796900572,0.64556475,81.113,81.092,48.5]
[1770796900875,3.74372921,81.1,81.07,3.74372921]
[1770796901175,0.64556475,81.099,81.072,0.69709201]
[1770796901669,0.64556475,81.099,81.063,0.69709201]
[1770796901874,0.64556475,81.089,81.064,48.5]
[1770796903257,0.64556475,81.087,81.064,48.5]
[1770796903773,3.74372921,81.08,81.055,48.5]
[1770796903951,0.64556475,81.079,81.055,49.19709201]
[1770796904153,0.64556475,81.079,81.055,0.69709201]
[1770796906275,0.64556475,81.083,81.06,4.44082122]
[1770796906475,0.64556475,81.083,81.06,0.69709201]
[1770796908585,12.33231034,81.088,81.061,0.69709201]
[1770796908963,39.32,81.107,81.081,0.69709201]
[1770796909170,12.32954405,81.106,81.081,0.69709201]
[1770796909363,12.32817604,81.115,81.091,0.69709201]
[1770796910079,0.64556475,81.114,81.08,3.7446711]
[1770796910379,0.64556475,81.114,81.081,0.66789529]
[1770796910778,0.64556475,81.114,81.08,3.7446711]
[1770796910779,13.020693,81.113,81.091,0.66789529]
[1770796910977,12.32848002,81.113,81.091,0.66789529]
[1770796911166,0.69221298,81.112,81.091,0.66789529]
[1770796911366,0.69221298,81.112,81.076,42.32]
[1770796911367,0.69221298,81.112,81.084,0.66789529]
[1770796911677,0.69221298,81.099,81.07,0.66789529]
[1770796912077,0.69221298,81.099,81.07,4.41256639]
[1770796912283,0.69221298,81.099,81.071,0.66789529]
[1770796912967,0.69221298,81.097,81.071,0.66789529]
[1770796914365,0.69221298,81.095,81.065,0.66789529]
[1770796917074,12.33136853,81.094,81.065,0.66789529]
[1770796917271,12.33072655,81.099,81.081,0.66789529]
[1770796918783,12.32958381,81.106,81.081,0.66789529]
[1770796919103,30.82149731,81.113,81.081,0.66789529]
[1770796919303,12.32832803,81.114,81.091,0.66789529]
[1770796919770,0.69221298,81.115,81.091,0.66789529]
[1770796919771,0.69221298,81.122,81.091,0.66789529]
[1770796919976,12.32775497,81.118,81.101,0.66789529]
[1770796920384,0.69221298,81.109,81.075,0.66789529]
[1770796920581,0.69221298,81.099,81.068,0.66789529]
[1770796921191,0.69221298,81.099,81.07,3.7446711]
[1770796921192,12.33076031,81.098,81.07,3.7446711]
[1770796921398,0.69221298,81.097,81.071,0.66789529]
[1770796921703,12.33076031,81.098,81.071,0.66789529]
[1770796923301,43.15198233,81.109,81.073,0.66789529]
[1770796923803,12.32908801,81.109,81.073,0.66789529]
[1770796924007,12.32908801,81.109,81.081,0.66789529]
[1770796924582,13.02130099,81.109,81.081,0.66789529]
[1770796924776,0.69221298,81.108,81.081,0.66789529]
[1770796924982,12.32908801,81.109,81.058,0.66789529]
[1770796924983,0.69221298,81.099,81.058,0.66789529]
[1770796925303,0.69221298,81.087,81.058,0.66789529]
[1770796925502,0.69221298,81.087,81.06,3.7446711]
[1770796925709,0.69221298,81.087,81.061,0.66789529]
[1770796926782,12.33228097,81.088,81.061,0.66789529]
[1770796927094,0.69221298,81.087,81.061,0.66789529]
[1770796927312,12.33165509,81.093,81.061,0.66789529]
[1770796927484,12.33165509,81.093,81.063,0.66789529]
[1770796928004,12.33091376,81.097,81.071,0.66789529]
[1770796928304,39.36,81.099,81.071,0.66789529]
[1770796928504,12.33076031,81.098,81.071,0.66789529]
[1770796929793,0.69221298,81.106,81.071,0.66789529]
[1770796930702,0.69221298,81.106,81.038,0.72846856]
[1770796930887,3.7446711,81.07,81.038,0.72846856]
[1770796931082,39.42,81.069,81.04,0.72846856]
[1770796931287,39.44,81.068,81.04,0.72846856]
[1770796931697,39.44,81.068,81.041,0.72846856]
[1770796931698,12.33547559,81.067,81.041,0.72846856]
[1770796933004,30.83425891,81.079,81.043,0.72846856]
[1770796933005,12.33364989,81.079,81.043,0.72846856]
[1770796933213,12.33364989,81.079,81.051,0.72846856]
[1770796933798,12.33364989,81.079,81.061,0.72846856]
[1770796934700,39.44,81.08,81.061,0.72846856]
[1770796934905,39.48,81.082,81.061,0.72846856]
[1770796937914,12.33334566,81.081,81.061,0.72846856]
[1770796938119,39.48,81.082,81.061,0.72846856]
[1770796939617,39.52,81.081,81.061,0.72846856]
[1770796941405,10.02889168,81.08,81.033,0.72846856]
[1770796941619,51.87364989,81.079,81.044,0.72846856]
[1770796942007,82.70777463,81.079,81.044,0.72846856]
[1770796942206,39.56,81.078,81.044,0.72846856]
[1770796943218,43.16777463,81.079,81.044,0.72846856]
[1770796943419,39.56,81.077,81.044,0.72846856]
[1770796944726,12.3342584,81.075,81.044,0.72846856]
[1770796947229,39.6,81.074,81.044,0.72846856]
[1770796948414,39.62296288,81.074,81.044,0.72846856]
[1770796949224,39.66399527,81.073,81.051,0.72846856]
[1770796949425,39.64,81.073,81.051,0.72846856]
[1770796950408,39.64,81.073,81.053,0.72846856]
[1770796951119,39.64,81.073,81.061,0.72846856]
[1770796951324,39.64,81.073,81.055,0.72846856]
[1770796954014,39.64,81.073,81.061,0.72846856]
[1770796954211,38.89778218,81.073,81.061,0.71904735]
[1770796957615,37.41008535,81.073,81.063,0.71904735]
[1770796957816,0.69596743,81.09,81.063,0.71904735]
[1770796958032,39.72,81.085,81.063,0.71904735]
[1770796958332,39.72,81.085,81.07,4.46284116]
[1770796958534,39.72,81.085,81.07,3.74379381]
[1770796958731,39.72,81.085,81.071,0.71904735]
[1770796959228,0.69596743,81.09,81.071,0.71904735]
[1770796959434,39.72,81.087,81.071,0.71904735]
[1770796961629,0.69596743,81.09,81.071,0.71904735]
[1770796961831,0.69596743,81.085,81.06,3.74379381]
[1770796962131,0.69596743,81.083,81.06,3.74379381]
[1770796962329,0.69596743,81.083,81.06,16.79936198]
[1770796963315,0.69596743,81.083,81.064,0.71904735]
[1770796963516,39.74,81.082,81.064,0.71904735]
[1770796965537,39.78,81.081,81.064,0.71904735]
[1770796966837,0.69596743,81.08,81.05,30.84478482]
[1770796967140,0.69596743,81.08,81.05,34.58857863]
[1770796967438,0.69596743,81.08,81.051,0.71904735]
[1770796967731,0.69596743,81.078,81.051,0.71904735]
[1770796968318,0.69596743,81.076,81.051,0.71904735]
[1770796969137,0.69596743,81.074,81.051,0.71904735]
[1770796969727,0.69596743,81.074,81.045,0.71904735]
[1770796970439,0.69094284,81.072,81.047,0.74613252]
[1770796970621,0.69094284,81.072,81.05,4.49117577]
[1770796970825,0.69094284,81.072,81.043,0.74613252]
[1770796971214,0.69094284,81.07,81.043,0.74613252]
[1770796973136,0.69094284,81.068,81.043,0.74613252]
[1770796973732,39.86,81.067,81.043,0.74613252]
[1770796974138,0.69094284,81.066,81.043,0.74613252]
[1770796974338,40.55094284,81.066,81.043,0.74613252]
[1770796974542,0.69094284,81.066,81.043,0.74613252]
[1770796974732,39.86,81.065,81.043,0.74613252]
[1770796975237,0.69094284,81.066,81.043,0.74613252]
[1770796975439,39.88,81.064,81.051,0.74613252]
[1770796976840,0.69094284,81.086,81.051,0.74613252]
[1770796977039,0.69094284,81.086,81.061,0.74613252]
[1770796977040,39.88,81.082,81.061,0.74613252]
[1770796979448,39.92,81.088,81.071,0.74613252]
[1770796979635,0.69094284,81.102,81.081,0.74613252]
[1770796979943,39.94,81.101,81.081,0.74613252]
[1770796980239,52.27030418,81.101,81.081,0.74613252]
[1770796981842,39.94,81.101,81.081,0.74613252]
[1770796982047,39.94,81.101,81.09,3.74528054]
[1770796982249,52.98020716,81.108,81.09,3.74528054]
[1770796982753,0.69094284,81.107,81.086,0.74613252]
[1770796983452,40.67094284,81.106,81.086,0.74613252]
[1770796983742,0.69094284,81.105,81.086,0.74613252]
[1770796983947,0.69094284,81.105,81.081,0.74613252]
[1770796985834,0.69094284,81.105,81.082,13.07932607]
[1770796986534,0.69094284,81.105,81.083,0.74613252]
[1770796986948,0.69094284,81.105,81.09,3.74528054]
[1770796987459,0.69094284,81.105,81.083,0.74613252]
[1770796990948,0.69094284,81.103,81.074,0.74613252]
[1770796991151,0.69094284,81.101,81.074,0.74613252]
[1770796994766,12.33045622,81.1,81.074,0.74613252]
[1770796995066,0.69094284,81.099,81.074,0.74613252]
[1770796995873,0.69094284,81.097,81.074,0.74613252]
[1770797001473,0.69094284,81.097,81.08,4.44827703]
[1770797001771,0.73317695,81.095,81.075,0.70299649]
[1770797008613,40.28,81.094,81.075,0.70299649]
[1770797008881,0.76579923,81.093,81.075,0.70299649]
[1770797017803,0.76579923,81.089,81.056,0.70614623]
[1770797018999,12.33228097,81.088,81.056,0.70614623]
[1770797019185,0.76579923,81.086,81.056,0.70614623]
[1770797021003,0.76579923,81.116,81.081,0.70614623]
[1770797021306,12.32422573,81.141,81.111,0.70614623]
[1770797021485,0.76579923,81.14,81.11,3.74528054]
[1770797021900,0.76579923,81.139,81.101,0.70614623]
[1770797022199,0.76579923,81.139,81.11,3.74528054]
[1770797022397,0.76579923,81.137,81.11,3.74528054]
[1770797022777,0.76579923,81.137,81.107,0.70614623]
[1770797022982,12.32498521,81.136,81.11,3.74528054]
[1770797023192,0.76579923,81.135,81.11,3.74528054]
[1770797024203,0.76579923,81.135,81.11,4.45142677]
[1770797024405,0.76579923,81.135,81.104,0.70614623]
[1770797024701,0.76579923,81.135,81.11,3.74528054]
[1770797025399,12.32528902,81.134,81.11,4.45142677]
[1770797025603,0.76579923,81.133,81.11,4.45142677]
[1770797026402,0.76579923,81.133,81.104,0.70614623]
[1770797028407,0.76579923,81.133,81.111,0.70614623]
[1770797028617,40.54,81.135,81.111,0.70614623]
[1770797029506,0.76579923,81.14,81.121,0.70614623]
[1770797029710,13.08936211,81.146,81.121,0.70614623]
[1770797030009,0.76579923,81.159,81.131,0.70614623]
[1770797030321,0.76579923,81.15,81.131,0.70614623]
[1770797031210,0.7379442,81.148,81.113,12.32841411]
[1770797031516,0.7379442,81.139,81.103,0.70861079]
[1770797031692,40.54,81.147,81.091,0.70861079]
[1770797031693,0.7379442,81.129,81.091,0.70861079]
[1770797032015,0.7379442,81.127,81.091,0.70861079]
[1770797032513,40.56,81.128,81.092,12.3316431]
[1770797032514,0.7379442,81.119,81.092,12.3316431]
[1770797032713,30.81301049,81.135,81.061,5.13032502]
[1770797032714,0.7379442,81.109,81.076,0.70861079]
[1770797032892,0.7379442,81.109,81.022,49.36884344]
[1770797032893,0.7379442,81.089,81.054,12.33732071]
[1770797033216,0.7379442,81.079,81.048,12.33831023]
[1770797033711,0.7379442,81.079,81.044,0.70861079]
[1770797034412,0.7379442,81.084,81.051,0.70861079]
[1770797034611,40.54,81.078,81.051,0.70861079]
[1770797035293,40.54,81.078,81.06,4.44658726]
[1770797035613,40.54,81.078,81.06,0.70861079]
[1770797036411,40.54,81.078,81.061,0.70861079]
[1770797036611,0.7379442,81.077,81.053,12.33755644]
[1770797036907,40.54,81.078,81.054,0.70861079]
[1770797037290,40.56,81.081,81.054,0.70861079]
[1770797038097,40.56,81.081,81.055,12.33730183]
[1770797038299,40.56,81.081,81.056,0.70861079]
[1770797038715,0.7379442,81.08,81.056,0.70861079]
[1770797039116,40.56,81.081,81.056,0.70861079]
[1770797040505,0.7379442,81.08,81.052,13.04625272]
[1770797040703,0.7379442,81.08,81.053,0.70861079]
[1770797041321,0.7379442,81.079,81.048,0.70861079]
[1770797041499,0.7379442,81.079,81.053,0.70861079]
[1770797041698,40.56,81.081,81.053,0.70861079]
[1770797042298,0.7379442,81.084,81.053,0.70861079]
[1770797042299,40.64,81.08,81.053,0.70861079]
[1770797042517,40.64,81.08,81.061,0.70861079]
[1770797043517,0.77908553,81.093,81.071,0.70861079]
[1770797044022,0.77908553,81.114,81.08,3.73797647]
[1770797044198,0.77908553,81.112,81.08,3.73797647]
[1770797044404,0.77908553,81.109,81.07,3.73797647]
[1770797044605,0.77908553,81.109,81.08,3.73797647]
[1770797045211,0.77908553,81.107,81.07,3.73797647]
[1770797045414,0.77908553,81.105,81.07,3.73797647]
[1770797049924,0.77908553,81.105,81.08,3.73797647]
[1770797050129,0.77908553,81.103,81.08,3.73797647]
[1770797052033,0.77908553,81.101,81.07,3.73797647]
[1770797052216,0.77908553,81.089,81.06,12.3363996]
[1770797052416,0.77908553,81.087,81.06,12.3363996]
[1770797053128,0.77908553,81.069,81.043,12.33902793]
[1770797053329,0.77908553,81.067,81.043,12.33902793]
[1770797054319,0.77908553,81.066,81.03,3.73797647]
[1770797054525,0.77908553,81.064,81.03,3.73797647]
[1770797054835,0.77908553,81.064,81.03,3.75807406]
[1770797055316,0.77908553,81.064,81.033,12.34055994]
[1770797056335,0.77908553,81.062,81.033,12.34055994]
[1770797056919,0.77908553,81.059,81.033,12.34055994]
[1770797057436,0.77908553,81.059,81.031,12.34095593]
[1770797059938,0.77908553,81.059,81.031,12.37117121]
[1770797060137,0.77908553,81.059,81.032,0.03184]
[1770797065325,0.79556383,81.058,81.021,0.0369177]
[1770797065532,12.33670052,81.059,81.003,0.0369177]
[1770797065533,0.79556383,81.039,81.003,0.0369177]
[1770797065731,0.79556383,81.029,81.001,12.34552659]
[1770797066527,0.79556383,81.029,80.895,49.4281019]
[1770797066528,0.79556383,81.019,80.981,0.03737462]
[1770797066945,0.79556383,81.009,80.98,0.1]
[1770797067148,0.79556383,81.009,80.952,5.13032502]
[1770797067149,0.79556383,80.989,80.96,0.2]
[1770797067334,0.79556383,80.969,80.94,0.63798321]
[1770797067535,0.79556383,80.967,80.947,12.35370193]
[1770797068240,0.79556383,80.976,80.956,12.35230329]
[1770797068445,0.79556383,80.987,80.961,12.35162609]
[1770797068840,0.79556383,80.987,80.961,12.89045857]
[1770797069030,0.79556383,80.987,80.962,0.53965477]
[1770797069227,0.79556383,80.987,80.963,12.35132097]
[1770797069449,0.79556383,80.987,80.963,12.89097574]
[1770797069649,40.82,80.991,80.964,0.53965477]
[1770797070028,0.79556383,80.989,80.958,12.35202134]
[1770797070240,0.79556383,80.979,80.958,12.35202134]
[1770797070747,0.79556383,80.979,80.962,12.35142413]
[1770797070928,0.79556383,80.979,80.957,12.35221362]
[1770797071333,0.79556383,80.979,80.957,12.35223637]
[1770797074244,0.79556383,80.979,80.957,12.89586853]
[1770797078451,40.84,80.988,80.958,0.54665186]
[1770797078655,0.79556383,80.987,80.958,0.54665186]
[1770797079643,0.79556383,80.987,80.959,12.35193122]
[1770797081740,0.79556383,80.987,80.96,0.54882211]
[1770797082139,0.79556383,80.979,80.944,0.54953373]
[1770797082359,12.3478132,80.986,80.944,0.54953373]
[1770797082360,0.79556383,80.985,80.944,0.54953373]
[1770797083060,0.79556383,80.979,80.944,0.54953373]
[1770797083967,0.79556383,80.979,80.945,12.35406757]
[1770797084261,0.79556383,80.979,80.946,0.55093584]
[1770797085569,0.79556383,80.977,80.946,0.55093584]
[1770797086261,0.79556383,80.977,80.947,12.35376233]
[1770797086454,0.79556383,80.977,80.948,0.55230405]
[1770797086784,40.92,80.981,80.951,0.55230405]
[1770797087360,0.79556383,80.999,80.961,0.552979]
[1770797088555,0.79556383,80.997,80.963,0.55364353]
[1770797089070,40.94,81.003,80.971,0.55430316]